fUSD/lending_fUSD_20250611
["ID","MTS","AMOUNT","RATE_DAILY","PERIOD"]
[365440408,1749674669882,2751.0,0.00017817,2]
[365440409,1749674681809,1000.0,0.00017817,2]
[365440410,1749674711587,204.0,0.00017164,2]
[365440411,1749674758370,234.91397695,0.00017712,2]
[365440412,1749674801285,204.0,0.00017164,2]
[365440413,1749674822537,1165.67,0.0001589,2]
[365440414,1749674828096,-1165.67,0.00018154,2]
[365440415,1749674828116,-401.79310237,0.00018234,2]
[365440416,1749674828145,-798.20689763,0.00018234,2]
[365440417,1749674828169,-300.0,0.00018234,2]
[365440418,1749674828191,-274.10914942,0.00018234,2]
[365440419,1749674831396,200.0,0.00017164,2]
[365440420,1749674846540,183.04,0.00016712,2]
[365440421,1749674850121,-25.89085058,0.00018234,2]
[365440422,1749674850143,-200.0,0.00018235,2]
[365440423,1749674850165,-1940.1,0.00018235,2]
[365440424,1749674850186,-1108.43,0.00018235,2]
[365440425,1749674850207,-486.64,0.0001824,2]
[365440426,1749674850228,-155.22,0.0001824,2]
[365440427,1749674850249,-301.22,0.0001824,2]
[365440428,1749674850274,-302.89,0.0001824,2]
[365440429,1749674850296,-301.76,0.0001824,2]
[365440430,1749674850318,-301.87,0.0001824,2]
[365440431,1749674850340,-305.23,0.0001824,2]
[365440432,1749674850362,-301.83,0.0001824,2]
[365440433,1749674850384,-300.25,0.0001824,2]
[365440434,1749674850406,-302.5,0.0001824,2]
[365440435,1749674850428,-303.09,0.0001824,2]
[365440436,1749674850449,-302.25,0.0001824,2]
[365440437,1749674850470,-305.42,0.00018242,2]
[365440438,1749674850491,-300.6,0.00018253,2]
[365440439,1749674850512,-171.36,0.00018341,2]
[365440440,1749674850534,-247.98,0.00018356,2]
[365440441,1749674850556,-301.37,0.00018356,2]
[365440442,1749674850578,-305.9,0.00018357,2]
[365440443,1749674850601,-40.12174877,0.00018357,2]
[365440444,1749674861576,200.0,0.00017164,2]
[365440445,1749674861982,113.46848425,0.00017115,2]
[365440446,1749674862006,37.53151575,0.00017115,2]
[365440454,1749674960191,633.57,0.00017943,2]
[365440455,1749675011868,204.0,0.00017462,2]
[365440456,1749675020658,226.11,0.0001795,2]
[365440467,1749675032297,-300.0,0.00018356,2]
[365440468,1749675032306,-1200.0,0.00018356,2]
[365440469,1749675032316,-302.03,0.00018357,2]
[365440470,1749675032325,-303.99,0.00018357,2]
[365440471,1749675032335,-301.86,0.00018357,2]
[365440472,1749675032344,-304.34,0.00018357,2]
[365440473,1749675032354,-301.14,0.00018357,2]
[365440474,1749675032364,-300.0,0.00018357,2]
[365440475,1749675032373,-305.17,0.00018357,2]
[365440476,1749675032383,-302.97,0.00018357,2]
[365440477,1749675032392,-260.20825123,0.00018357,2]
[365440478,1749675032401,-304.8,0.00018357,2]
[365440479,1749675032410,-305.37,0.00018358,2]
[365440480,1749675032420,-302.67,0.00018361,2]
[365440481,1749675032429,-301.52,0.00018361,2]
[365440482,1749675032439,-301.32,0.00018384,2]
[365440483,1749675032448,-151.0,0.00018426,2]
[365440484,1749675032457,-1957.856,0.00018426,2]
[365440485,1749675032466,-668.65185757,0.00018426,2]
[365440486,1749675032475,-281.75575539,0.00018426,2]
[365440487,1749675032485,-207.4,0.00018426,2]
[365440488,1749675032494,-666.0,0.00018469,2]
[365440489,1749675032504,-300.0,0.00018469,2]
[365440490,1749675032513,-304.32,0.00018469,2]
[365440491,1749675032523,-301.14,0.00018469,2]
[365440492,1749675032532,-301.63,0.00018469,2]
[365440493,1749675032542,-304.94,0.00018469,2]
[365440494,1749675032551,-302.19,0.00018469,2]
[365440495,1749675032561,-303.06,0.00018469,2]
[365440496,1749675032570,-305.04,0.00018469,2]
[365440497,1749675032579,-2030.296672,0.00018481,2]
[365440498,1749675032589,-2105.41764886,0.00018536,2]
[365440499,1749675032599,-304.98,0.0001859,2]
[365440500,1749675032608,-2183.31810187,0.00018591,2]
[365440501,1749675032618,-2264.10087164,0.00018646,2]
[365440502,1749675032628,-494.14790944,0.00018701,2]
[365440503,1749675032646,-1853.72469445,0.00018701,2]
[365440504,1749675032655,-204.0,0.00018751,3]
[365440505,1749675032664,-2434.74389024,0.00018756,2]
[365440507,1749675032673,-2391.29193531,0.00018811,2]
[365440524,1749675038254,-133.53747886,0.00018811,2]
[365440525,1749675038264,-700.0,0.00018831,2]
[365440526,1749675038275,-1842.0,0.00018844,2]
[365440527,1749675038286,-84.03504521,0.00018866,2]
[365440528,1749675038300,-2534.21305729,0.00018866,2]
[365440529,1749675038312,-203.64485745,0.000189,2]
[365440530,1749675038323,-150.0,0.0001892,2]
[365440531,1749675038334,-850.0,0.0001892,2]
[365440532,1749675038345,-2715.12328229,0.00018921,2]
[365440533,1749675038357,-2815.58284374,0.00018976,2]
[365440534,1749675038369,-203.64485742,0.00018991,2]
[365440535,1749675038382,-298.24678667,0.00019014,2]
[365440536,1749675038394,-304.43,0.00019022,2]
[365440537,1749675038405,-2919.75940895,0.00019031,2]
[365440538,1749675038416,-1000.0,0.00019036,2]
[365440539,1749675038427,-298.24678667,0.00019068,2]
[365440540,1749675038437,-591.93993254,0.00019078,2]
[365440541,1749675038448,-941.59801384,0.00019078,2]
[365440542,1749675038459,-2535.75610142,0.00019078,2]
[365440543,1749675038472,-275.61790475,0.00019078,2]
[365440544,1749675038483,-203.64485742,0.00019082,2]
[365440545,1749675038495,-380.0,0.00019085,2]
[365440546,1749675038506,-611.48948098,0.00019085,2]
[365440547,1749675038518,-3027.79050709,0.00019086,2]
[365440548,1749675038529,-941.59801372,0.00019095,2]
[365440549,1749675038540,-955.712208,0.00019109,2]
[365440550,1749675038552,-941.59801372,0.00019113,2]
[365440551,1749675038564,-941.59801372,0.0001913,2]
[365440552,1749675038576,-6837.18153432,0.00019141,2]
[365440553,1749675038594,-566.0,0.00019141,2]
[365440554,1749675038648,-353.89742766,0.00019141,2]
[365440555,1749675038676,-9153.9,0.00019141,2]
[365440556,1749675038690,-840.64224431,0.00019141,2]
[365440557,1749675038703,-3139.81875585,0.00019141,2]
[365440558,1749675038715,-941.59801372,0.00019147,2]
[365440559,1749675038726,-298.24678667,0.00019151,2]
[365440560,1749675038737,-941.59801372,0.00019164,2]
[365440561,1749675038748,-189.09,0.00019168,3]
[365440562,1749675038759,-325.97,0.00019168,2]
[365440563,1749675038770,-325.97,0.00019168,2]
[365440564,1749675038781,-325.97,0.00019168,2]
[365440565,1749675038791,-1495.19,0.00019168,2]
[365440567,1749675038802,-2535.75610142,0.00019168,2]
[365440569,1749675038812,-203.64485742,0.00019173,2]
[365440570,1749675038824,-293.59135004,0.00019177,2]
[365440571,1749675038836,-300.0,0.00019178,2]
[365440573,1749675038850,-458.34093824,0.00019178,2]
[365440575,1749675038860,-215.68026786,0.00019178,2]
[365440577,1749675038870,-761.798934,0.00019178,2]
[365440579,1749675038879,-426.396296,0.00019178,2]
[365440580,1749675038889,-490.0,0.00019178,2]
[365440581,1749675038902,-490.0,0.00019178,2]
[365440582,1749675038913,-420.0,0.00019178,2]
[365440583,1749675038924,-490.0,0.00019178,2]
[365440584,1749675038936,-490.0,0.00019178,2]
[365440585,1749675038948,-278.53,0.00019178,2]
[365440586,1749675038959,-205.47956406,0.00019178,2]
[365440587,1749675038969,-490.0,0.00019178,2]
[365440588,1749675038979,-490.0,0.00019178,2]
[365440589,1749675038991,-490.0,0.00019178,2]
[365440590,1749675039002,-312.53241862,0.00019178,2]
[365440591,1749675039013,-490.0,0.00019178,2]
[365440594,1749675039026,-490.0,0.00019178,2]
[365440596,1749675039036,-480.0,0.00019178,2]
[365440599,1749675039047,-263.76350653,0.00019178,2]
[365440602,1749675039058,-480.0,0.00019178,2]
[365440604,1749675039068,-490.0,0.00019178,2]
[365440606,1749675039079,-490.0,0.00019178,2]
[365440608,1749675039090,-420.0,0.00019178,2]
[365440611,1749675039100,-480.0,0.00019178,2]
[365440613,1749675039111,-430.0,0.00019178,2]
[365440615,1749675039121,-620.76,0.00019178,2]
[365440617,1749675039131,-480.0,0.00019178,2]
[365440619,1749675039142,-490.0,0.00019178,2]
[365440621,1749675039155,-490.0,0.00019178,2]
[365440623,1749675039166,-179.83105169,0.00019178,2]
[365440625,1749675039176,-490.0,0.00019178,2]
[365440628,1749675039187,-490.0,0.00019178,2]
[365440630,1749675039199,-500.0,0.00019178,2]
[365440631,1749675039210,-508.87334993,0.00019178,2]
[365440632,1749675039221,-421.30591172,0.00019178,2]
[365440633,1749675039233,-307.47562714,0.00019178,2]
[365440634,1749675039243,-480.0,0.00019178,2]
[365440635,1749675039254,-370.0,0.00019178,2]
[365440636,1749675039264,-490.0,0.00019178,2]
[365440637,1749675039274,-480.0,0.00019178,2]
[365440638,1749675039285,-490.0,0.00019178,2]
[365440639,1749675039295,-490.0,0.00019178,2]
[365440640,1749675039306,-490.0,0.00019178,2]
[365440641,1749675039316,-480.0,0.00019178,2]
[365440642,1749675039327,-422.44317901,0.00019178,2]
[365440643,1749675039338,-421.77582201,0.00019178,2]
[365440644,1749675039349,-480.0,0.00019178,2]
[365440645,1749675039359,-490.0,0.00019178,2]
[365440646,1749675039370,-360.0,0.00019178,2]
[365440647,1749675039380,-500.0,0.00019178,2]
[365440648,1749675039391,-480.0,0.00019178,2]
[365440649,1749675039401,-420.0,0.00019178,2]
[365440650,1749675039412,-480.0,0.00019178,2]
[365440651,1749675039422,-490.0,0.00019178,2]
[365440652,1749675039432,-480.0,0.00019178,2]
[365440653,1749675039443,-490.0,0.00019178,2]
[365440654,1749675039453,-420.0,0.00019178,2]
[365440655,1749675039464,-490.0,0.00019178,2]
[365440656,1749675039475,-490.0,0.00019178,2]
[365440657,1749675039487,-480.0,0.00019178,2]
[365440658,1749675039497,-490.0,0.00019178,2]
[365440659,1749675039509,-480.0,0.00019178,2]
[365440660,1749675039520,-480.0,0.00019178,2]
[365440661,1749675039531,-150.60389769,0.00019178,2]
[365440662,1749675039541,-490.0,0.00019178,2]
[365440663,1749675039552,-490.0,0.00019178,2]
[365440664,1749675039563,-490.0,0.00019178,2]
[365440665,1749675039574,-490.0,0.00019178,2]
[365440666,1749675039584,-250.50856869,0.00019178,2]
[365440667,1749675039595,-480.0,0.00019178,2]
[365440668,1749675039605,-480.0,0.00019178,2]
[365440669,1749675039617,-480.0,0.00019178,2]
[365440670,1749675039628,-490.0,0.00019178,2]
[365440671,1749675039641,-490.0,0.00019178,2]
[365440672,1749675039652,-490.0,0.00019178,2]
[365440673,1749675039665,-490.0,0.00019178,2]
[365440674,1749675039676,-79.65143285,0.00019178,2]
[365440675,1749675039695,-410.34856715,0.00019178,2]
[365440676,1749675039716,-443.10238964,0.00019178,2]
[365440677,1749675039727,-490.0,0.00019178,2]
[365440678,1749675039738,-490.0,0.00019178,2]
[365440679,1749675039750,-460.0,0.00019178,2]
[365440680,1749675039761,-480.0,0.00019178,2]
[365440681,1749675039773,-480.0,0.00019178,2]
[365440682,1749675039784,-480.0,0.00019178,2]
[365440683,1749675039797,-480.0,0.00019178,2]
[365440684,1749675039808,-380.0,0.00019178,2]
[365440685,1749675039820,-490.0,0.00019178,2]
[365440686,1749675039832,-386.18513415,0.00019178,2]
[365440687,1749675039843,-480.0,0.00019178,2]
[365440688,1749675039855,-480.0,0.00019178,2]
[365440689,1749675039867,-490.0,0.00019178,2]
[365440690,1749675039879,-480.0,0.00019178,2]
[365440691,1749675039891,-480.0,0.00019178,2]
[365440692,1749675039903,-490.0,0.00019178,2]
[365440693,1749675039914,-490.0,0.00019178,2]
[365440694,1749675039926,-159.2,0.00019178,2]
[365440695,1749675039937,-480.0,0.00019178,2]
[365440696,1749675039950,-490.0,0.00019178,2]
[365440697,1749675039962,-480.0,0.00019178,2]
[365440698,1749675039972,-323.77992209,0.00019178,2]
[365440699,1749675039983,-490.0,0.00019178,2]
[365440700,1749675039994,-490.0,0.00019178,2]
[365440701,1749675040004,-420.0,0.00019178,2]
[365440702,1749675040015,-490.0,0.00019178,2]
[365440704,1749675040026,-490.0,0.00019178,2]
[365440705,1749675040036,-490.0,0.00019178,2]
[365440706,1749675040047,-490.0,0.00019178,2]
[365440707,1749675040058,-454.24369905,0.00019178,2]
[365440708,1749675040072,-35.75630095,0.00019178,2]
[365440709,1749675040082,-471.56290274,0.00019178,2]
[365440710,1749675040103,-61.76613913,0.00019178,2]
[365440711,1749675040114,-490.0,0.00019178,2]
[365440712,1749675040124,-496.25627979,0.00019178,2]
[365440713,1749675040135,-490.0,0.00019178,2]
[365440714,1749675040148,-490.0,0.00019178,2]
[365440715,1749675040163,-480.0,0.00019178,2]
[365440716,1749675040174,-490.0,0.00019178,2]
[365440717,1749675040184,-480.0,0.00019178,2]
[365440718,1749675040199,-490.0,0.00019178,2]
[365440719,1749675040209,-490.0,0.00019178,2]
[365440720,1749675040220,-23.48710641,0.00019178,2]
[365440721,1749675040563,-420.0,0.00019178,2]
[365440722,1749675040679,-46.51289359,0.00019178,2]
[365440723,1749675040690,-490.0,0.00019178,2]
[365440724,1749675040702,-300.0,0.00019178,2]
[365440725,1749675040714,-490.0,0.00019178,2]
[365440726,1749675040725,-490.0,0.00019178,2]
[365440727,1749675040736,-490.0,0.00019178,2]
[365440728,1749675040746,-490.0,0.00019178,2]
[365440729,1749675040757,-490.0,0.00019178,2]
[365440730,1749675040767,-490.0,0.00019178,2]
[365440731,1749675040778,-199.79262427,0.00019178,2]
[365440732,1749675040789,-490.0,0.00019178,2]
[365440733,1749675040800,-490.0,0.00019178,2]
[365440734,1749675040811,-490.0,0.00019178,2]
[365440735,1749675040821,-480.0,0.00019178,2]
[365440736,1749675040832,-431.63,0.00019178,2]
[365440737,1749675040843,-490.0,0.00019178,2]
[365440738,1749675040853,-490.0,0.00019178,2]
[365440739,1749675040863,-490.0,0.00019178,2]
[365440740,1749675040874,-490.0,0.00019178,2]
[365440741,1749675040884,-490.0,0.00019178,2]
[365440742,1749675040895,-490.0,0.00019178,2]
[365440743,1749675040905,-480.0,0.00019178,2]
[365440744,1749675040916,-490.0,0.00019178,2]
[365440745,1749675040927,-405.49648588,0.00019178,2]
[365440746,1749675040937,-584.96,0.00019178,2]
[365440747,1749675040948,-538.99588997,0.00019178,2]
[365440748,1749675040959,-582.46943949,0.00019178,2]
[365440749,1749675040969,-490.0,0.00019178,2]
[365440750,1749675040980,-490.0,0.00019178,2]
[365440751,1749675040990,-490.0,0.00019178,2]
[365440752,1749675041001,-490.0,0.00019178,2]
[365440754,1749675041010,-490.0,0.00019178,2]
[365440756,1749675041020,-365.82,0.00019178,2]
[365440758,1749675041030,-629.45937254,0.00019178,2]
[365440760,1749675041040,-480.0,0.00019178,2]
[365440762,1749675041050,-538.77048822,0.00019178,2]
[365440764,1749675041060,-490.0,0.00019178,2]
[365440766,1749675041071,-763.49,0.00019178,2]
[365440768,1749675041081,-490.0,0.00019178,2]
[365440770,1749675041091,-553.84683566,0.00019178,2]
[365440772,1749675041101,-490.0,0.00019178,2]
[365440774,1749675041111,-490.0,0.00019178,2]
[365440777,1749675041121,-281.39898684,0.00019178,2]
[365440779,1749675041131,-490.0,0.00019178,2]
[365440781,1749675041141,-480.0,0.00019178,2]
[365440783,1749675041155,-480.0,0.00019178,2]
[365440785,1749675041165,-490.0,0.00019178,2]
[365440787,1749675041174,-480.0,0.00019178,2]
[365440789,1749675041184,-490.0,0.00019178,2]
[365440791,1749675041196,-490.0,0.00019178,2]
[365440793,1749675041206,-490.0,0.00019178,2]
[365440795,1749675041216,-490.0,0.00019178,2]
[365440797,1749675041226,-480.0,0.00019178,2]
[365440799,1749675041237,-490.0,0.00019178,2]
[365440802,1749675041247,-490.0,0.00019178,2]
[365440804,1749675041256,-490.0,0.00019178,2]
[365440806,1749675041266,-480.0,0.00019178,2]
[365440808,1749675041276,-490.0,0.00019178,2]
[365440810,1749675041286,-300.85825068,0.00019178,2]
[365440812,1749675041296,-490.0,0.00019178,2]
[365440814,1749675041306,-490.0,0.00019178,2]
[365440816,1749675041316,-490.0,0.00019178,2]
[365440818,1749675041327,-421.69081753,0.00019178,2]
[365440820,1749675041337,-167.61,0.00019178,2]
[365440823,1749675041347,-623.64,0.00019178,2]
[365440825,1749675041357,-490.0,0.00019178,2]
[365440827,1749675041367,-490.0,0.00019178,2]
[365440829,1749675041377,-490.0,0.00019178,2]
[365440831,1749675041387,-490.0,0.00019178,2]
[365440833,1749675041398,-450.0,0.00019178,2]
[365440835,1749675041408,-480.0,0.00019178,2]
[365440837,1749675041418,-420.0,0.00019178,2]
[365440840,1749675041428,-490.0,0.00019178,2]
[365440842,1749675041438,-480.0,0.00019178,2]
[365440844,1749675041449,-480.0,0.00019178,2]
[365440846,1749675041459,-490.0,0.00019178,2]
[365440848,1749675041470,-490.0,0.00019178,2]
[365440850,1749675041480,-588.25,0.00019178,2]
[365440852,1749675041490,-490.0,0.00019178,2]
[365440854,1749675041500,-480.0,0.00019178,2]
[365440856,1749675041510,-490.0,0.00019178,2]
[365440858,1749675041520,-490.0,0.00019178,2]
[365440861,1749675041531,-490.0,0.00019178,2]
[365440903,1749675041965,-490.0,0.00019178,2]
[365440906,1749675041990,-258.85261021,0.00019178,2]
[365440908,1749675042001,-490.0,0.00019178,2]
[365440910,1749675042011,-480.0,0.00019178,2]
[365440911,1749675042019,-480.0,0.00019178,2]
[365440912,1749675042029,-490.0,0.00019178,2]
[365440913,1749675042038,-480.0,0.00019178,2]
[365440914,1749675042047,-490.0,0.00019178,2]
[365440915,1749675042056,-532.3,0.00019178,2]
[365440916,1749675042066,-480.0,0.00019178,2]
[365440917,1749675042074,-464.82789052,0.00019178,2]
[365440918,1749675042083,-490.0,0.00019178,2]
[365440919,1749675042092,-490.0,0.00019178,2]
[365440920,1749675042101,-480.0,0.00019178,2]
[365440921,1749675042109,-490.0,0.00019178,2]
[365440922,1749675042118,-480.0,0.00019178,2]
[365440923,1749675042127,-525.94,0.00019178,2]
[365440924,1749675042136,-534.14,0.00019178,2]
[365440925,1749675042149,-446.67,0.00019178,2]
[365440926,1749675042159,-490.0,0.00019178,2]
[365440927,1749675042169,-4971.91,0.00019178,2]
[365440928,1749675042178,-490.0,0.00019178,2]
[365440929,1749675042187,-4651.01,0.00019178,2]
[365440930,1749675042197,-420.0,0.00019178,2]
[365440931,1749675042206,-490.0,0.00019178,2]
[365440932,1749675042215,-490.0,0.00019178,2]
[365440933,1749675042224,-316.09,0.00019178,2]
[365440934,1749675042233,-490.0,0.00019178,2]
[365440935,1749675042242,-611.77,0.00019178,2]
[365440936,1749675042251,-490.0,0.00019178,2]
[365440937,1749675042261,-490.0,0.00019178,2]
[365440938,1749675042270,-876.39,0.00019178,2]
[365440939,1749675042279,-1346.21,0.00019178,2]
[365440940,1749675042288,-490.0,0.00019178,2]
[365440941,1749675042297,-490.0,0.00019178,2]
[365440942,1749675042307,-490.0,0.00019178,2]
[365440943,1749675042316,-925.98,0.00019178,2]
[365440944,1749675042326,-266.51769385,0.00019178,2]
[365440945,1749675042335,-480.0,0.00019178,2]
[365440946,1749675042344,-490.0,0.00019178,2]
[365440947,1749675042353,-746.12,0.00019178,2]
[365440948,1749675042363,-490.0,0.00019178,2]
[365440949,1749675042371,-490.0,0.00019178,2]
[365440950,1749675042381,-490.0,0.00019178,2]
[365440951,1749675042390,-2453.95,0.00019178,2]
[365440952,1749675042400,-518.23,0.00019178,2]
[365440953,1749675042409,-500.0,0.00019178,2]
[365440954,1749675042419,-480.0,0.00019178,2]
[365440955,1749675042428,-490.0,0.00019178,2]
[365440956,1749675042437,-490.0,0.00019178,2]
[365440957,1749675042447,-592.53,0.00019178,2]
[365440958,1749675042456,-480.0,0.00019178,2]
[365440959,1749675042465,-490.0,0.00019178,2]
[365440960,1749675042474,-547.0,0.00019178,2]
[365440961,1749675042483,-522.68,0.00019178,2]
[365440962,1749675042492,-490.0,0.00019178,2]
[365440963,1749675042502,-490.0,0.00019178,2]
[365440964,1749675042510,-490.0,0.00019178,2]
[365440965,1749675042519,-490.0,0.00019178,2]
[365440966,1749675042528,-490.0,0.00019178,2]
[365440967,1749675042537,-490.0,0.00019178,2]
[365440968,1749675042546,-490.0,0.00019178,2]
[365440969,1749675042555,-490.0,0.00019178,2]
[365440970,1749675042564,-490.0,0.00019178,2]
[365440971,1749675042573,-490.0,0.00019178,2]
[365440972,1749675042582,-188.93,0.00019178,2]
[365440973,1749675042591,-490.0,0.00019178,2]
[365440974,1749675042600,-490.0,0.00019178,2]
[365440975,1749675042609,-6596.75,0.00019178,2]
[365440976,1749675042618,-585.98,0.00019178,2]
[365440977,1749675042627,-495.41,0.00019178,2]
[365440978,1749675042636,-490.0,0.00019178,2]
[365440979,1749675042645,-480.0,0.00019178,2]
[365440980,1749675042655,-490.0,0.00019178,2]
[365440981,1749675042664,-480.0,0.00019178,2]
[365440982,1749675042673,-725.35,0.00019178,2]
[365440983,1749675042682,-480.0,0.00019178,2]
[365440984,1749675042691,-490.0,0.00019178,2]
[365440985,1749675042701,-836.88,0.00019178,2]
[365440986,1749675042710,-490.0,0.00019178,2]
[365440987,1749675042719,-1495.0,0.00019178,2]
[365440988,1749675042728,-490.0,0.00019178,2]
[365440989,1749675042737,-490.0,0.00019178,2]
[365440990,1749675042747,-490.0,0.00019178,2]
[365440991,1749675042755,-718.09,0.00019178,2]
[365440992,1749675042765,-480.0,0.00019178,2]
[365440993,1749675042774,-614.35,0.00019178,2]
[365440994,1749675042784,-490.0,0.00019178,2]
[365440995,1749675042793,-748.76,0.00019178,2]
[365440996,1749675042802,-502.07477544,0.00019178,2]
[365440997,1749675042811,-490.0,0.00019178,2]
[365440998,1749675042820,-592.66,0.00019178,2]
[365440999,1749675042829,-490.0,0.00019178,2]
[365441000,1749675042838,-490.0,0.00019178,2]
[365441001,1749675042847,-500.0,0.00019178,2]
[365441002,1749675042857,-896.52,0.00019178,2]
[365441003,1749675042867,-490.0,0.00019178,2]
[365441004,1749675042876,-553.54,0.00019178,2]
[365441005,1749675042885,-490.0,0.00019178,2]
[365441006,1749675042895,-490.0,0.00019178,2]
[365441007,1749675042904,-490.0,0.00019178,2]
[365441008,1749675042913,-490.0,0.00019178,2]
[365441009,1749675042923,-691.7,0.00019178,2]
[365441010,1749675042932,-490.0,0.00019178,2]
[365441011,1749675042941,-1329.38,0.00019178,2]
[365441012,1749675042951,-490.67,0.00019178,2]
[365441013,1749675042961,-490.0,0.00019178,2]
[365441014,1749675042970,-480.0,0.00019178,2]
[365441015,1749675042979,-490.0,0.00019178,2]
[365441016,1749675042989,-490.0,0.00019178,2]
[365441017,1749675042998,-552.11,0.00019178,2]
[365441018,1749675043008,-490.0,0.00019178,2]
[365441019,1749675043017,-266.26,0.00019178,2]
[365441020,1749675043027,-588.88,0.00019178,2]
[365441021,1749675043036,-490.0,0.00019178,2]
[365441022,1749675043045,-490.0,0.00019178,2]
[365441023,1749675043055,-480.0,0.00019178,2]
[365441024,1749675043064,-1422.39,0.00019178,2]
[365441025,1749675043074,-490.0,0.00019178,2]
[365441026,1749675043083,-640.88,0.00019178,2]
[365441027,1749675043092,-891.68,0.00019178,2]
[365441028,1749675043102,-3599.12,0.00019178,2]
[365441029,1749675043111,-490.0,0.00019178,2]
[365441030,1749675043121,-631.41,0.00019178,2]
[365441031,1749675043131,-490.0,0.00019178,2]
[365441032,1749675043141,-480.0,0.00019178,2]
[365441033,1749675043154,-873.66,0.00019178,2]
[365441034,1749675043163,-490.0,0.00019178,2]
[365441035,1749675043172,-490.0,0.00019178,2]
[365441036,1749675043181,-490.0,0.00019178,2]
[365441037,1749675043192,-1953.58,0.00019178,2]
[365441038,1749675043202,-490.0,0.00019178,2]
[365441039,1749675043211,-490.0,0.00019178,2]
[365441040,1749675043222,-490.0,0.00019178,2]
[365441041,1749675043231,-1496.74,0.00019178,2]
[365441042,1749675043241,-1399.14,0.00019178,2]
[365441043,1749675043250,-779.69,0.00019178,2]
[365441044,1749675043260,-490.0,0.00019178,2]
[365441045,1749675043270,-951.66,0.00019178,2]
[365441046,1749675043279,-1000.0,0.00019178,2]
[365441047,1749675043288,-490.0,0.00019178,2]
[365441048,1749675043297,-2083.12,0.00019178,2]
[365441049,1749675043307,-490.0,0.00019178,2]
[365441050,1749675043316,-490.0,0.00019178,2]
[365441051,1749675043325,-480.0,0.00019178,2]
[365441052,1749675043334,-490.0,0.00019178,2]
[365441053,1749675043344,-480.0,0.00019178,2]
[365441054,1749675043353,-490.0,0.00019178,2]
[365441055,1749675043363,-507.16,0.00019178,2]
[365441056,1749675043372,-490.0,0.00019178,2]
[365441057,1749675043381,-490.0,0.00019178,2]
[365441058,1749675043390,-490.0,0.00019178,2]
[365441059,1749675043400,-490.0,0.00019178,2]
[365441060,1749675043409,-490.0,0.00019178,2]
[365441061,1749675043418,-490.0,0.00019178,2]
[365441062,1749675043427,-490.0,0.00019178,2]
[365441063,1749675043436,-2399.16,0.00019178,2]
[365441064,1749675043446,-490.0,0.00019178,2]
[365441065,1749675043455,-551.89,0.00019178,2]
[365441066,1749675043464,-490.0,0.00019178,2]
[365441067,1749675043473,-480.0,0.00019178,2]
[365441068,1749675043483,-5287.53,0.00019178,2]
[365441069,1749675043492,-490.0,0.00019178,2]
[365441070,1749675043501,-583.83,0.00019178,2]
[365441071,1749675043510,-3595.92,0.00019178,2]
[365441072,1749675043519,-449.92,0.00019178,2]